fUSD/lending_fUSD_20260311
["ID","MTS","AMOUNT","RATE_DAILY","PERIOD"]
[408221841,1773259840550,-151.0,0.00019962,2]
[408221843,1773259840559,-151.0,0.00019962,2]
[408221845,1773259840568,-204.76698,0.00019962,2]
[408221846,1773259840577,-6391.23,0.00019962,2]
[408221847,1773259840586,-500.0,0.00019973,2]
[408221848,1773259840595,-150.0,0.00019975,2]
[408221849,1773259840604,-154.21,0.0001998,2]
[408221850,1773259840614,-154.21,0.00019987,2]
[408221851,1773259840623,-500.0,0.00019987,2]
[408221852,1773259840632,-500.0,0.00019987,2]
[408221853,1773259840642,-500.0,0.00019987,2]
[408221854,1773259840651,-500.0,0.00019987,2]
[408221855,1773259840664,-500.0,0.00019987,2]
[408221856,1773259840674,-500.0,0.00019987,2]
[408221857,1773259840683,-500.0,0.00019987,2]
[408221858,1773259840692,-1054.29329688,0.0001999,2]
[408221859,1773259840702,-1054.29329688,0.0001999,2]
[408221860,1773259840715,-1054.29329688,0.0001999,2]
[408221862,1773259840725,-1000.0,0.00019993,2]
[408221863,1773259840736,-155.318,0.00019996,2]
[408221864,1773259840747,-500.0,0.00019996,2]
[408221865,1773259840759,-500.0,0.00019996,2]
[408221866,1773259840770,-500.0,0.00019996,2]
[408221867,1773259840781,-500.0,0.00019996,2]
[408221868,1773259840791,-584.74137557,0.00019996,2]
[408221869,1773259840802,-500.0,0.00019996,2]
[408221870,1773259840811,-500.0,0.00019996,2]
[408221871,1773259840821,-500.0,0.00019996,2]
[408221872,1773259840830,-500.0,0.00019996,2]
[408221873,1773259840842,-500.0,0.00019996,2]
[408221874,1773259840852,-500.0,0.00019996,2]
[408221875,1773259840864,-156.89992437,0.00019996,2]
[408221876,1773259840875,-500.0,0.00019996,2]
[408221877,1773259840886,-592.91608988,0.00019996,2]
[408221878,1773259840897,-500.0,0.00019997,2]
[408221879,1773259840909,-151.0,0.00019997,2]
[408221880,1773259840920,-151.0,0.00019997,2]
[408221881,1773259840931,-295988.3073079,0.00019997,2]
[408221882,1773259840941,-15731.6180927,0.00019997,2]
[408221883,1773259840953,-146607.6634597,0.00019997,2]
[408221884,1773259840964,-151.0,0.00019997,2]
[408221885,1773259840976,-151.0,0.00019997,2]
[408221886,1773259840987,-297.217407,0.00019997,2]
[408221887,1773259840998,-151.0,0.00019997,2]
[408221888,1773259841009,-151.0,0.00019997,2]
[408221889,1773259841020,-3048.2520218,0.00019997,2]
[408221890,1773259841030,-151.0,0.00019997,2]
[408221891,1773259841042,-151.0,0.00019997,2]
[408221892,1773259841053,-151.0,0.00019997,2]
[408221893,1773259841064,-151.0,0.00019997,2]
[408221894,1773259841074,-151.0,0.00019997,2]
[408221895,1773259841084,-151.0,0.00019997,2]
[408221896,1773259841095,-151.0,0.00019997,2]
[408221897,1773259841105,-286.106624,0.00019997,2]
[408221898,1773259841115,-1447.865825,0.00019997,2]
[408221899,1773259841125,-151.0,0.00019997,2]
[408221900,1773259841135,-151.0,0.00019997,2]
[408221901,1773259841146,-3148.5783273,0.00019997,2]
[408221902,1773259841162,-475.991677,0.00019997,2]
[408221903,1773259841173,-475.991677,0.00019997,2]
[408221904,1773259841186,-475.991677,0.00019997,2]
[408221905,1773259841198,-475.991677,0.00019997,2]
[408221906,1773259841208,-475.991677,0.00019997,2]
[408221907,1773259841218,-475.991677,0.00019997,2]
[408221908,1773259841230,-475.991677,0.00019997,2]
[408221909,1773259841239,-475.991677,0.00019997,2]
[408221910,1773259841250,-33104.5992415,0.00019997,2]
[408221911,1773259841260,-158.081187,0.00019997,2]
[408221912,1773259841270,-151.0,0.00019997,2]
[408221913,1773259841281,-30318.4089775,0.00019997,2]
[408221914,1773259841291,-151.0,0.00019997,2]
[408221915,1773259841302,-151.0,0.00019997,2]
[408221916,1773259841313,-151.0,0.00019997,2]
[408221917,1773259841323,-151.0,0.00019997,2]
[408221918,1773259841333,-151.0,0.00019997,2]
[408221919,1773259841343,-151.0,0.00019997,2]
[408221920,1773259841354,-151.0,0.00019997,2]
[408221921,1773259841363,-151.0,0.00019997,2]
[408221922,1773259841374,-151.0,0.00019997,2]
[408221923,1773259841384,-169.220777,0.00019997,2]
[408221924,1773259841399,-2667.372802,0.00019997,2]
[408221925,1773259841409,-2667.372802,0.00019997,2]
[408221926,1773259841419,-2667.372802,0.00019997,2]
[408221927,1773259841429,-2667.372802,0.00019997,2]
[408221928,1773259841440,-2667.372802,0.00019997,2]
[408221929,1773259841450,-2667.372802,0.00019997,2]
[408221930,1773259841461,-2667.372802,0.00019997,2]
[408221931,1773259841471,-2667.372802,0.00019997,2]
[408221932,1773259841482,-350.664736,0.00019997,2]
[408221933,1773259841494,-350.664736,0.00019997,2]
[408221934,1773259841505,-350.664736,0.00019997,2]
[408221935,1773259841515,-350.664736,0.00019997,2]
[408221936,1773259841525,-350.664736,0.00019997,2]
[408221937,1773259841535,-350.664736,0.00019997,2]
[408221938,1773259841545,-350.664736,0.00019997,2]
[408221939,1773259841556,-350.664736,0.00019997,2]
[408221940,1773259841567,-4776.3350501,0.00019997,2]
[408221941,1773259841577,-151.0,0.00019997,2]
[408221942,1773259841588,-151.0,0.00019997,2]
[408221943,1773259841601,-195.015343,0.00019997,2]
[408221944,1773259841611,-195.015343,0.00019997,2]
[408221945,1773259841622,-398.045812,0.00019997,2]
[408221946,1773259841633,-398.045812,0.00019997,2]
[408221947,1773259841643,-195.015343,0.00019997,2]
[408221948,1773259841653,-195.015343,0.00019997,2]
[408221949,1773259841664,-398.045812,0.00019997,2]
[408221950,1773259841674,-398.045812,0.00019997,2]
[408221951,1773259841685,-195.015343,0.00019997,2]
[408221952,1773259841696,-195.015343,0.00019997,2]
[408221953,1773259841706,-398.045812,0.00019997,2]
[408221954,1773259841715,-398.045812,0.00019997,2]
[408221955,1773259841725,-195.015343,0.00019997,2]
[408221956,1773259841735,-195.015343,0.00019997,2]
[408221957,1773259841744,-398.045812,0.00019997,2]
[408221958,1773259841754,-398.045812,0.00019997,2]
[408221959,1773259841764,-151.0,0.00019997,2]
[408221960,1773259841773,-151.0,0.00019997,2]
[408221961,1773259841784,-151.0,0.00019997,2]
[408221962,1773259841795,-151.0,0.00019997,2]
[408221963,1773259841806,-852.4169765,0.00019999,2]
[408221964,1773259841817,-300.0,0.00019999,2]
[408221965,1773259841827,-300.0,0.00019999,2]
[408221966,1773259841836,-300.0,0.00019999,2]
[408221967,1773259841845,-666.0,0.00019999,2]
[408221968,1773259841855,-504.75795,0.00019999,5]
[408221969,1773259841865,-500.0,0.00019999,2]
[408221970,1773259841875,-500.0,0.00019999,2]
[408221971,1773259841884,-500.0,0.00019999,2]
[408221972,1773259841893,-500.0,0.00019999,2]
[408221973,1773259841903,-500.0,0.00019999,2]
[408221974,1773259841913,-500.0,0.00019999,2]
[408221975,1773259841922,-500.0,0.00019999,2]
[408221976,1773259841932,-500.0,0.00019999,2]
[408221977,1773259841942,-500.0,0.00019999,2]
[408221978,1773259841952,-500.0,0.00019999,2]
[408221979,1773259841963,-500.0,0.00019999,2]
[408221980,1773259841973,-500.0,0.00019999,2]
[408221981,1773259841984,-546.33,0.00019999,2]
[408221982,1773259841994,-500.0,0.00019999,2]
[408221983,1773259842003,-500.0,0.00019999,2]
[408221984,1773259842013,-274.9282927,0.00019999,2]
[408221985,1773259842022,-612.38393485,0.00019999,2]
[408221986,1773259842032,-500.0,0.00019999,2]
[408221987,1773259842042,-397.97236465,0.00019999,2]
[408221988,1773259842051,-500.0,0.00019999,2]
[408221989,1773259842060,-500.0,0.00019999,2]
[408221990,1773259842070,-500.0,0.00019999,2]
[408221991,1773259842079,-500.0,0.00019999,2]
[408221992,1773259842089,-500.0,0.00019999,2]
[408221993,1773259842099,-500.0,0.00019999,2]
[408221994,1773259842110,-500.0,0.00019999,2]
[408221995,1773259842120,-500.0,0.00019999,2]
[408221996,1773259842132,-500.0,0.00019999,2]
[408221997,1773259842143,-500.0,0.00019999,2]
[408221998,1773259842158,-500.0,0.00019999,2]
[408221999,1773259842168,-500.0,0.00019999,2]
[408222000,1773259842179,-500.0,0.00019999,2]
[408222001,1773259842189,-500.0,0.00019999,2]
[408222002,1773259842200,-500.0,0.00019999,2]
[408222003,1773259842210,-500.0,0.00019999,2]
[408222004,1773259842220,-500.0,0.00019999,2]
[408222005,1773259842231,-500.0,0.00019999,2]
[408222006,1773259842241,-500.0,0.00019999,2]
[408222007,1773259842251,-230.118378,0.00019999,2]
[408222008,1773259842260,-500.0,0.00019999,2]
[408222009,1773259842270,-500.0,0.00019999,2]
[408222010,1773259842280,-500.0,0.00019999,2]
[408222011,1773259842291,-500.0,0.00019999,2]
[408222012,1773259842301,-500.0,0.00019999,2]
[408222013,1773259842311,-500.0,0.00019999,2]
[408222014,1773259842321,-500.0,0.00019999,2]
[408222015,1773259842331,-500.0,0.00019999,2]
[408222016,1773259842341,-500.0,0.00019999,2]
[408222017,1773259842351,-500.0,0.00019999,2]
[408222018,1773259842360,-500.0,0.00019999,2]
[408222019,1773259842370,-500.0,0.00019999,2]
[408222020,1773259842380,-500.0,0.00019999,2]
[408222021,1773259842390,-500.0,0.00019999,2]
[408222022,1773259842400,-500.0,0.00019999,2]
[408222023,1773259842409,-500.0,0.00019999,2]
[408222024,1773259842420,-500.0,0.00019999,2]
[408222025,1773259842431,-500.0,0.00019999,2]
[408222026,1773259842443,-418.85,0.00019999,2]
[408222027,1773259842453,-191.31621318,0.00019999,2]
[408222028,1773259842464,-500.0,0.00019999,2]
[408222029,1773259842475,-353.40668689,0.00019999,2]
[408222030,1773259842486,-5788.0,0.0002,2]
[408222031,1773259842495,-1046743.42289802,0.0002,2]
[408222032,1773259842606,-2529.30522254,0.0002,2]
[408222033,1773259842618,-2125.52836104,0.0002,2]
[408222035,1773259842630,-1143.00500063,0.0002,2]
[408222036,1773259842645,-443966.67103029,0.0002,2]
[408222050,1773259842916,-12384.17355889,0.0002,2]
[408222052,1773259843023,-2470.77284107,0.0002,2]
[408222053,1773259843035,-36586.84127908,0.0002,2]
[408222054,1773259843048,-3607.91454681,0.0002,2]
[408222055,1773259843130,-119262.32533699,0.0002,2]
[408222056,1773259843140,-285.24328442,0.0002,2]
[408222057,1773259843150,-555170.8236699,0.0002,2]
[408222058,1773259843165,-187623.63312899,0.0002,2]
[408222059,1773259843176,-1257.3162017,0.0002,2]
[408222068,1773259845816,-310.735509,0.000198,2]
[408222069,1773259845827,-1982.98681484,0.0002,2]
[408222070,1773259845840,-955.11354241,0.0002,2]
[408222071,1773259845874,-104327.26251832,0.0002,2]
[408222072,1773259845887,-459.58986104,0.0002,2]
[408222073,1773259846081,-1698.40656521,0.0002,2]
[408222148,1773260617010,3030.71462004,0.000143,5]
[408222149,1773260617034,2502.28537996,0.000143,5]
[408222160,1773260965264,2497.72462004,0.000144,2]
[408222161,1773260965285,5000.01,0.000144,2]
[408222162,1773260965315,70629.26537996,0.000144,2]
[408222163,1773260977190,190.487525,0.00014355,2]
[408222168,1773261031949,-200.50132498,0.00014427,2]
[408222169,1773261031959,-152.29574581,0.00014613,2]
[408222170,1773261031972,-31.63167493,0.00014613,2]
[408222171,1773261031983,-968.36832507,0.00014613,2]
[408222172,1773261032002,-702.99174814,0.00014613,2]
[408222173,1773261032013,-707.20992679,0.00014613,2]
[408222174,1773261032023,-541.82951974,0.000147,3]
[408222175,1773261032034,-302.49008279,0.000147,3]
[408222176,1773261032062,-4688.68039747,0.000147,3]
[408222177,1773261032071,-400.0,0.00014785,4]
[408222178,1773261032080,-1200.0,0.00014999,2]
[408222179,1773261032089,-5533.0,0.00015,5]
[408222180,1773261032099,-449.0329701,0.00015,30]
[408222181,1773261032108,-339.563129,0.00015,30]
[408222182,1773261032118,-300.0,0.00015099,2]
[408222183,1773261032127,-500.0,0.0001515,2]
[408222184,1773261032136,-500.0,0.0001515,2]
[408222185,1773261032145,-500.0,0.0001515,2]
[408222186,1773261032155,-300.0,0.00015435,2]
[408222187,1773261032164,-69277.0631014,0.00015436,2]
[408222189,1773261032173,-500.0,0.00015698,2]
[408222191,1773261032182,-500.0,0.00015698,2]
[408222193,1773261032191,-1516.0,0.00015735,2]
[408222195,1773261032200,-1516.0,0.00015735,2]
[408222197,1773261032209,-1516.0,0.00015735,2]
[408222199,1773261032218,-153.92401772,0.00015735,2]
[408222201,1773261032227,-1516.0,0.00015735,2]
[408222203,1773261032237,-160.0,0.00015735,2]
[408222205,1773261032246,-1516.0,0.00015735,2]
[408222207,1773261032257,-160.45403572,0.00015735,2]
[408222209,1773261032267,-1654.30370298,0.00015735,2]
[408222211,1773261032276,-152.0,0.00015735,2]
[408222213,1773261032285,-500.0,0.000158,2]
[408222215,1773261032294,-319.8729,0.00015801,2]
[408222217,1773261032304,-374.7733,0.0001587,2]
[408222219,1773261032313,-194.5969468,0.0001587,2]
[408222221,1773261032323,-250.0,0.0001587,2]
[408222223,1773261032331,-5000.0,0.0001587,2]
[408222225,1773261032341,-600.0,0.0001606,2]
[408222227,1773261032350,-722.0,0.00016363,2]
[408222229,1773261032359,-151.0,0.00016438,2]
[408222231,1773261032369,-151.0,0.00016438,2]
[408222233,1773261032378,-151.0,0.00016438,2]
[408222235,1773261032387,-151.0,0.00016438,2]
[408222237,1773261032396,-1680.0,0.00016499,2]
[408222239,1773261032406,-510.0,0.00016561,2]
[408222241,1773261032415,-3092.35647952,0.00016664,2]
[408222243,1773261032425,-264.66,0.000168,2]
[408222245,1773261032434,-510.0,0.00017,2]
[408222247,1773261032444,-4570.06571584,0.00017025,2]
[408222248,1773261032454,-150.0,0.00017083,2]
[408222249,1773261032463,-853.02206549,0.00017255,2]
[408222250,1773261032472,-639.76654911,0.00017425,2]
[408222251,1773261032481,-204.65,0.00017644,2]
[408222252,1773261032490,-1000.0,0.00017883,2]
[408222253,1773261032500,-2351.0,0.00018149,2]
[408222254,1773261032509,-1999.0,0.00018157,2]
[408222255,1773261032754,-200.0,0.00018283,2]
[408222256,1773261032764,-1000.0,0.00018431,2]
[408222257,1773261032774,-1504.0,0.00018705,2]
[408222258,1773261032783,-3361.07,0.00018745,2]
[408222259,1773261032792,-174.61919141,0.00018999,2]
[408222260,1773261032802,-168.0,0.00019046,2]
[408222261,1773261032811,-168.0,0.00019068,2]
[408222262,1773261032820,-200.0,0.00019167,2]
[408222263,1773261032830,-500.0,0.00019167,2]
[408222264,1773261032839,-500.0,0.00019167,2]
[408222265,1773261032849,-151.0,0.00019167,2]
[408222266,1773261032857,-500.0,0.00019167,2]
[408222267,1773261032867,-500.0,0.00019167,2]
[408222268,1773261032876,-500.0,0.00019167,2]
[408222269,1773261032885,-500.0,0.00019167,2]
[408222270,1773261032894,-500.0,0.00019167,2]
[408222271,1773261032903,-500.0,0.00019167,2]
[408222272,1773261032912,-500.0,0.00019167,2]
[408222273,1773261032921,-500.0,0.00019167,2]
[408222274,1773261032930,-588.53467861,0.00019167,2]
[408222275,1773261032939,-20242.31,0.00019178,2]
[408222276,1773261032949,-168.0,0.00019201,2]
[408222277,1773261032962,-168.0,0.00019225,2]
[408222278,1773261032971,-168.0,0.00019266,2]
[408222279,1773261032980,-300.0,0.000193,7]
[408222280,1773261032990,-700.0,0.000194,7]
[408222281,1773261032999,-54931.6289,0.00019498,2]
[408222282,1773261033009,-299.8654,0.00019499,2]
[408222283,1773261033018,-2500.0,0.00019499,2]
[408222284,1773261033028,-5630.88454444,0.000195,2]
[408222285,1773261033037,-8254.84818483,0.000195,2]
[408222286,1773261033047,-1100.0,0.000195,7]
[408222287,1773261033056,-168.0,0.00019504,2]
[408222288,1773261033065,-5630.88454436,0.00019544,2]
[408222289,1773261033075,-8254.8481848,0.00019544,2]
[408222290,1773261033084,-181.08010149,0.00019547,2]
[408222291,1773261033093,-500.0,0.00019573,2]
[408222292,1773261033103,-151.56,0.00019587,2]
[408222293,1773261033112,-5630.88454436,0.00019589,2]
[408222294,1773261033122,-8254.8481848,0.00019589,2]
[408222295,1773261033131,-500.0,0.00019598,2]
[408222296,1773261033140,-500.0,0.00019598,2]
[408222297,1773261033150,-500.0,0.00019598,2]
[408222298,1773261033159,-500.0,0.00019598,2]
[408222299,1773261033168,-500.0,0.00019598,2]
[408222300,1773261033177,-500.0,0.00019598,2]
[408222301,1773261033187,-500.0,0.00019598,2]
[408222302,1773261033196,-500.0,0.00019598,2]
[408222303,1773261033205,-500.0,0.00019598,2]
[408222304,1773261033214,-500.0,0.00019598,2]
[408222305,1773261033223,-500.0,0.00019598,2]
[408222306,1773261033233,-575.90628668,0.00019598,2]
[408222307,1773261033242,-500.0,0.00019598,2]
[408222308,1773261033251,-500.0,0.00019598,2]
[408222309,1773261033262,-500.0,0.00019598,2]
[408222310,1773261033271,-500.0,0.00019598,2]
[408222311,1773261033281,-500.0,0.00019598,2]
[408222312,1773261033292,-500.0,0.00019598,2]
[408222313,1773261033301,-500.0,0.00019598,2]
[408222314,1773261033310,-500.0,0.00019598,2]
[408222315,1773261033319,-500.0,0.00019598,2]
[408222316,1773261033329,-500.0,0.00019598,2]
[408222317,1773261033342,-500.0,0.00019598,2]
[408222318,1773261033352,-500.0,0.00019598,2]
[408222319,1773261033362,-500.0,0.00019598,2]
[408222320,1773261033372,-500.0,0.00019598,2]
[408222321,1773261033382,-500.0,0.00019598,2]
[408222322,1773261033392,-500.0,0.00019598,2]
[408222323,1773261033402,-500.0,0.00019598,2]
[408222324,1773261033412,-500.0,0.00019598,2]
[408222325,1773261033421,-500.0,0.00019598,2]
[408222326,1773261033431,-500.0,0.00019598,2]
[408222327,1773261033441,-500.0,0.00019598,2]
[408222328,1773261033451,-500.0,0.00019598,2]
[408222329,1773261033461,-500.0,0.00019598,2]
[408222330,1773261033470,-500.0,0.00019598,2]
[408222331,1773261033481,-500.0,0.00019598,2]
[408222332,1773261033491,-500.0,0.00019598,2]
[408222333,1773261033500,-500.0,0.00019598,2]
[408222334,1773261033511,-500.0,0.00019598,2]
[408222335,1773261033525,-3427.42084726,0.00019599,2]
[408222336,1773261033539,-15819.25919022,0.00019599,2]
[408222337,1773261033565,-56196.38407893,0.00019599,2]
[408222338,1773261033578,-41031.06220467,0.00019599,2]
[408222339,1773261033591,-1085.39999998,0.00019599,2]
[408222340,1773261038028,-2766.56,0.0001596,2]
[408222341,1773261038137,-1029.94150551,0.0001596,2]
[408222342,1773261038147,-74.47672221,0.00019598,2]
[408222343,1773261038159,-426.74648869,0.00019598,2]
[408222344,1773261038170,-500.0,0.00019598,2]
[408222345,1773261038180,-500.0,0.00019598,2]
[408222346,1773261038189,-500.0,0.00019598,2]
[408222347,1773261038200,-500.0,0.00019598,2]
[408222348,1773261038210,-200.0,0.00019598,2]
[408222349,1773261038220,-500.0,0.00019598,2]
[408222350,1773261038231,-500.0,0.00019598,2]
[408222351,1773261038240,-500.0,0.00019598,2]
[408222352,1773261038249,-500.0,0.00019598,2]
[408222353,1773261038258,-500.0,0.00019598,2]
[408222354,1773261038268,-500.0,0.00019598,2]
[408222355,1773261038278,-500.0,0.00019598,2]
[408222356,1773261038287,-500.0,0.00019598,2]
[408222357,1773261038297,-500.0,0.00019598,2]
[408222358,1773261038307,-500.0,0.00019598,2]
[408222359,1773261038318,-500.0,0.00019598,2]
[408222360,1773261038327,-500.0,0.00019598,2]
[408222361,1773261038336,-500.0,0.00019598,2]
[408222362,1773261038346,-500.0,0.00019598,2]
[408222364,1773261038354,-500.0,0.00019598,2]
[408222365,1773261038363,-500.0,0.00019598,2]
[408222367,1773261038372,-500.0,0.00019598,2]
[408222369,1773261038381,-500.0,0.00019598,2]
[408222371,1773261038390,-313563.63967894,0.00019599,2]
[408222373,1773261038399,-1000.0,0.000196,2]
[408222375,1773261038408,-1500.0,0.000196,7]
[408222377,1773261038416,-168.0,0.00019612,2]
[408222379,1773261038425,-5630.88454436,0.00019633,2]
[408222381,1773261038434,-8254.8481848,0.00019633,2]
[408222383,1773261038444,-5630.88454436,0.00019678,2]
[408222385,1773261038454,-8254.8481848,0.00019678,2]
[408222387,1773261038463,-1900.0,0.000197,7]
[408222389,1773261038473,-5630.88454436,0.00019722,2]
[408222391,1773261038482,-8254.8481848,0.00019722,2]
[408222393,1773261038491,-150.0,0.00019723,2]
[408222395,1773261038501,-500.0,0.00019723,2]
[408222397,1773261038510,-150.0,0.00019723,2]
[408222399,1773261038523,-150.0,0.00019723,2]
[408222401,1773261038534,-150.0,0.00019723,2]
[408222403,1773261038543,-150.0,0.00019723,2]
[408222405,1773261038553,-150.0,0.00019723,2]
[408222407,1773261038562,-150.0,0.00019723,2]
[408222409,1773261038572,-150.0,0.00019723,2]
[408222411,1773261038580,-500.0,0.00019723,2]
[408222413,1773261038589,-150.0,0.00019723,2]
[408222415,1773261038599,-150.0,0.00019723,2]
[408222417,1773261038608,-150.0,0.00019723,2]
[408222419,1773261038617,-500.0,0.00019723,2]
[408222421,1773261038626,-150.0,0.00019723,2]
[408222423,1773261038635,-150.0,0.00019723,2]
[408222425,1773261038645,-150.0,0.00019723,2]
[408222427,1773261038654,-500.0,0.00019723,2]
[408222429,1773261038663,-150.0,0.00019723,2]
[408222431,1773261038671,-150.0,0.00019723,2]
[408222432,1773261038680,-500.0,0.00019723,2]
[408222433,1773261038689,-500.0,0.00019723,2]
[408222434,1773261038698,-150.0,0.00019723,2]
[408222435,1773261038707,-150.0,0.00019723,2]
[408222436,1773261038717,-150.0,0.00019723,2]
[408222437,1773261038728,-500.0,0.00019723,2]
[408222438,1773261038737,-1000.0,0.00019728,2]
[408222439,1773261038745,-168.0,0.0001975,2]
[408222440,1773261038755,-1000.0,0.00019762,2]
[408222441,1773261038764,-150.0,0.00019764,2]
[408222442,1773261038772,-5630.88454436,0.00019767,2]
[408222443,1773261038782,-8254.8481848,0.00019767,2]
[408222444,1773261038792,-500.0,0.00019773,2]
[408222445,1773261038801,-150.0,0.00019778,2]
[408222446,1773261038810,-500.0,0.00019778,2]
[408222447,1773261038819,-150.0,0.00019778,2]
[408222448,1773261038828,-150.0,0.00019778,2]
[408222449,1773261038837,-150.0,0.00019778,2]
[408222450,1773261038846,-150.0,0.00019778,2]
[408222451,1773261038856,-150.0,0.00019778,2]
[408222452,1773261038867,-150.0,0.00019778,2]
[408222453,1773261038879,-500.0,0.00019778,2]
[408222454,1773261038888,-500.0,0.00019778,2]
[408222455,1773261038898,-150.0,0.00019778,2]
[408222456,1773261038907,-150.0,0.00019778,2]
[408222457,1773261038917,-500.0,0.00019778,2]
[408222458,1773261038927,-150.0,0.00019778,2]
[408222459,1773261038936,-150.0,0.00019778,2]
[408222460,1773261038946,-500.0,0.00019778,2]
[408222461,1773261038955,-500.0,0.00019778,2]
[408222462,1773261038964,-500.0,0.00019778,2]
[408222463,1773261038973,-1000.0,0.00019781,2]
[408222464,1773261038983,-1000.0,0.00019783,2]
[408222465,1773261038992,-1000.0,0.00019786,2]
[408222466,1773261039001,-1000.0,0.00019794,2]
[408222467,1773261039010,-280.39,0.00019797,2]
[408222468,1773261039019,-1000.0,0.00019798,2]
[408222469,1773261039028,-18706.80332493,0.00019799,2]
[408222470,1773261039041,-347.94209097,0.00019799,2]
[408222471,1773261040227,-420.81679979,0.00019799,2]
[408222472,1773261040239,-4779.76509798,0.00019799,2]
[408222473,1773261040282,-4580.05,0.00019799,2]
[408222474,1773261040498,-61891.80658633,0.00019799,2]
[408222475,1773261040508,-500.0,0.00019799,2]
[408222476,1773261040518,-500.0,0.00019799,2]
[408222477,1773261040529,-500.0,0.00019799,2]
[408222478,1773261040540,-500.0,0.00019799,2]
[408222479,1773261040551,-500.0,0.00019799,2]
[408222480,1773261040562,-300.0,0.000198,7]
[408222481,1773261040572,-1333.33333,0.000198,2]
[408222482,1773261040582,-1333.33333,0.000198,2]
[408222483,1773261040593,-1882.6182,0.000198,2]
[408222484,1773261040603,-1000.0,0.00019809,2]
[408222485,1773261040612,-5630.88454436,0.00019811,2]
[408222486,1773261040621,-8254.8481848,0.00019811,2]
[408222487,1773261040630,-1000.0,0.00019814,2]
[408222488,1773261040639,-902.4485462,0.00019819,2]
[408222489,1773261040649,-1000.0,0.00019822,2]
[408222490,1773261040658,-1000.0,0.00019823,2]
[408222491,1773261040667,-500.0,0.00019833,2]
[408222492,1773261040677,-150.0,0.00019833,2]
[408222493,1773261040686,-200.0,0.00019833,2]
[408222494,1773261040695,-200.0,0.00019833,2]
[408222495,1773261040705,-500.0,0.00019833,2]
[408222496,1773261040714,-500.0,0.00019833,2]
[408222497,1773261040723,-200.0,0.00019833,2]
[408222498,1773261040733,-200.0,0.00019833,2]
[408222499,1773261040742,-500.0,0.00019833,2]
[408222500,1773261040752,-200.0,0.00019833,2]
[408222501,1773261040762,-200.0,0.00019833,2]
[408222502,1773261040772,-500.0,0.00019833,2]
[408222503,1773261040781,-500.0,0.00019833,2]
[408222504,1773261040791,-500.0,0.00019833,2]
[408222505,1773261040800,-1000.0,0.00019838,2]
[408222506,1773261040811,-1000.0,0.0001984,2]
[408222507,1773261040820,-171.256,0.00019842,2]
[408222508,1773261040830,-150.0,0.00019845,2]
[408222509,1773261040840,-1000.0,0.00019846,2]
[408222510,1773261040850,-1000.0,0.00019846,2]
[408222511,1773261040861,-1665.285,0.00019847,2]
[408222512,1773261040872,-1000.0,0.00019854,2]
[408222513,1773261040882,-5630.88454436,0.00019856,2]
[408222515,1773261040893,-8254.8481848,0.00019856,2]
[408222516,1773261040902,-151.56,0.00019861,2]
[408222517,1773261040911,-1000.0,0.00019866,2]
[408222518,1773261040921,-219.48,0.00019867,2]
[408222519,1773261040930,-1000.0,0.00019867,2]